Workbook

Sheet 총정리
A1: 2023 | B1: 년 | C1: 11 | D1: 월 | E1: 급여대장
E4: 지급정보 | M4: 공제정보
A5: 순번 | B5: 성명 | C5: 사번 | D5: 호봉 | E5: 기본급 | F5: 기술수당 | G5: 식대 | H5: 자가운전보조금 | I5: 연장/휴일/야간 | J5: 총과세합산금액 | K5: 총비과세금액 | L5: 지급총액 | M5: 국민연금 | N5: 국민건강보험 | O5: 장기요양보험 | P5: 고용보험 | Q5: 소득세 | R5: 지방세 | S5: 공제총액 | T5: 실지급액 | U5: 은행명 | V5: 계좌번호 | W5: 계좌주
A6: 1 | B6: 경경경 | C6: 23001 | D6: 1 | E6: 2806900 | G6: 170000 | I6: 21440 | J6: 2828340 | K6: 170000 | L6: 5826680 | M6: 158890 | N6: 126930 | O6: 16250 | P6: 25450 | Q6: 25840 | R6: 2584 | S6: 355944 | T6: 5470736 | U6: 우리 | V6: 1002-111-1111111 | W6: 경경경
A7: 2 | B7: 민민민 | C7: 23002 | D7: 1(기) | E7: 1800000 | F7: 200000 | G7: 200000 | H7: 200000 | I7: 165800 | J7: 2165800 | K7: 400000 | L7: 4731600 | M7: 110920 | N7: 88620 | O7: 11350 | P7: 19490 | Q7: 24660 | R7: 2466 | S7: 257506 | T7: 4474094 | U7: 국민 | V7: 320012-100-1200 | W7: 민민민
A8: 3 | B8: 홍길동 | C8: 23003 | D8: 3 | E8: 2000000 | G8: 200000 | H8: 200000 | I8: 207460 | J8: 2207460 | K8: 400000 | L8: 4814920 | M8: 73930 | N8: 59080 | O8: 7560 | P8: 19860 | Q8: 25950 | R8: 2595 | S8: 188975 | T8: 4625945 | U8: 카카오 | V8: 3333-12-0000051 | W8: 홍길동
A9: 4 | B9: 김김김 | C9: 23005 | D9: 8 | I9: 0 | J9: 0 | K9: 0 | L9: 0 | M9: 0 | N9: 0 | O9: 0 | P9: 0 | S9: 0 | T9: 0 | U9: 신한 | V9: 110-10-100000 | W9: 김김김
A10: 5 | B10: 길길길 | C10: 23007 | D10: 4(기) | E10: 2100000 | F10: 200000 | G10: 200000 | H10: 200000 | I10: 0 | J10: 2300000 | K10: 400000 | L10: 5000000 | M10: 132750 | N10: 106350 | O10: 13620 | P10: 20700 | Q10: 29160 | R10: 2916 | S10: 305496 | T10: 4694504 | U10: 수협 | V10: 123-11-111100 | W10: 길길길
A11: 6 | B11: 이박 | C11: 23009 | D11: 일용직 | E11: 1 | G11: 1 | H11: 1 | I11: 0 | J11: 1 | K11: 2 | L11: 4 | O11: 0 | P11: 0 | S11: 0 | T11: 4 | U11: 카카오 | V11: 3333-18-1055550 | W11: 이박

Sheet 급여명세서
A2: 급 여 지 급 명 세 서 | F2: 조회 사번 | G2: 23001
A3: ="("&총정리!C1&"월 지급분)" -> (11월 지급분) | F3: 급여지급일 | G3: ="2023-"&총정리!C1&"-25" -> 2023-11-25
I4: ↓ 아래 빈칸에 검색가능
C5: [출력일] | D5: =NOW() -> 2023-11-20T14:25:56.580 | I5: 이름검색 | J5: 홍길동
A6: 성명 | B6: 경경경 | C6: 지급일 | D6: =G3 -> 2023-11-25 | I6: 사번검색
A7: 사번 | B7: 23001 | C7: 호봉 | D7: 1
A8: ※ 계좌정보 | B8: 우리 | C8: 1002-111-1111111 | D8: (경경경)
A10: 지급항목 | C10: 공제항목
A11: 기본급 | B11: 2806900 | C11: 국민연금 | D11: 158890
A12: 식대 | B12: 170000 | C12: 국민건강보험 | D12: 126930
A13: 연장/휴일/야간 | B13: 21440 | C13: 장기요양보험 | D13: 16250
C14: 고용보험 | D14: 25450
A15: [과세분 합계] | B15: 2828340 | C15: 소득세 | D15: 25840
A16: [비과세분 합계] | B16: 170000 | C16: 지방세 | D16: 2584
A17: 지급합계 | B17: 2998340 | C17: 공제합계 | D17: 355944
A18: 급여 외 과세합산금 | B18: 0 | C18: 실지급액 | D18: 2642396
B19: 0 | C19: 0 | D19: 0
A20: 근로일수 | B20: 연장근로시간 | C20: 야간근로시간 | D20: 휴일근로시간
A21: 30 | B21: 1 | C21: 0 | D21: 0
A24: 지급항목 | B24: 산출방법 | C24: 공제항목 | D24: 산출방법
A25: 연장근로수당 | B25: 연장근로시간*단가*1.5배 | C25: 국민연금 | D25: 소득월액*0.45%
A26: 야간근로수당 | B26: 야간근로시간*단가*1.5배 | C26: 건강보험 | D26: 보수월액*3.545%
A27: 휴일근로수당 | B27: 휴일근로시간*단가*1.5배 | C27: 장기요양보험 | D27: 건강보험료*12.81%
A28: 식대 | B28: 월 정액 | C28: 고용보험 | D28: 과세분합계*0.9%
A29: 중도퇴사시 | B29: 수당*근로일수/월일수 | C29: 근로소득세 | D29: 근로소득간이지급명세서
C30: 지방소득세 | D30: 소득세*10%
A32: ※ 귀하의 노고에 감사드립니다.
B36: 업체명 : | C36: UJUNI.COM | D36: (인)
B38: 대표자 : | C38: UJUNI | D38: (인)

Sheet 일용직근로정보 (hidden)
A3: 순번 | B3: 성명 | C3: 사번

Sheet 급여명세서(양식) (hidden)
A2: 급 여 지 급 명 세 서 | F2: 조회 사번 | G2: 23001
A3: ="("&총정리!C1&"월 지급분)" -> (11월 지급분) | F3: 급여지급일 | G3: ="2023-"&총정리!C1&"-25" -> 2023-11-25
C5: [출력일] | D5: =NOW() -> 2023-11-20T14:25:56.580
A6: 성명 | C6: 지급일 | D6: =G3 -> 2023-11-25
A7: 사번 | C7: 호봉
A9: 지급항목 | C9: 공제항목
A15: [과세분합계]
A16: [비과세분합계]
A17: 지급합계 | C17: 공제합계
A18: 급여외과세합산금 | C18: 실지급액
A20: 근로일수 | B20: 연장근로시간 | C20: 야간근로시간 | D20: 휴일근로시간
A23: 지급항목 | B23: 산출방법 | C23: 공제항목 | D23: 산출방법
A24: 연장근로수당 | C24: 국민연금
A25: 야간근로수당 | C25: 건강보험
A26: 휴일근로수당 | C26: 장기요양보험
A27: 식대 | C27: 고용보험
C28: 근로소득세
C29: 지방소득세
A31: ※ 귀하의 노고에 감사드립니다.
B35: 업체명 : | D35: (인)
B37: 대표자 : | D37: (인)

Sheet 순서
B2: ※ 작업 순서 ( 각 카테고리 버튼을 누르면 해당 시트가 표시/감추기 전환됩니다. ) | J2: 아래 모든 작업이 완료된 후 총정리 시트의 불러오기를 눌러 자료를 최종 정리합니다.
F4: 1) 급여테이블 작성 | I4: 급여의 기본적인 구성체계를 입력.
I5: 호봉별로 차등 지급 되도록 설정 가능
I6: 통상임금 정보 및 비과세 항목 설정
I7: 매월/ 각 월 지급 설정 가능.
F9: 2) 사원 명단 작성 | I9: 급여를 받을 대상들의 정보를 기입합니다.
I10: 사번을 통해 구분됩니다.
I11: 주민번호를 통해 중복자를 걸러냅니다.
I12: 부양가족 정보를 통해 소득세 원천징수 계산을 반영합니다.
I13: 호봉과 무관한 개인별로 지급할 수당을 별도 입력 가능합니다.(과세분만 가능, 통상임금에서 제외됨)
F17: 1) 추가근로정보 | I17: 추가근로 발생시 내용을 정리
F19: 2) 시간외 수당 계산 | I19: 추가근로 기입이 완료되면 시간외수당을 계산
C20: ↑ 매월 작업
F21: 3) 지급정보 | I21: 시간외 수당이 모두 입력되면 지급정보 계산을 돌려 지급관련 정보를 총 정리.
I22: 자동으로 정리된 내용에서 정정할 부분이 있으면 수기로 정정 가능.
I23: (수기로 정정시 버튼을 다시 돌리면 정정한 내용이 날아갈 수 있습니다.) 시간외 수당 등은 변경시 자동으로 반영됩니다.
I24: (추가 지급 기입을 입력하신 내용이 날아갈 수 있습니다.)
I25: (버튼은 초기에 한번만!!!!)
F27: 1) 4대보험 정보 | I27: 지급정보를 통해 과세합산금이 산출되면, 4대보험 계산이 가능합니다.
I28: (고용보험 및 산재보험이 과세합산금과 관련됨)
I29: 국민연금 소득월액 업데이트 | L29: 매년 7월 갱신
C30: ↑ 매월 작업 | I30: 건강보험 보수월액 업데이트 | L30: 매년 4월 갱신
F32: 2) 공제정보 | I32: 4대보험이 마감되면 버튼을 눌러 공제정보를 최종적으로 정리합니다.
I33: 추가로 공제할 내용이있다면 수기로 입력 가능합니다
I34: (지급과 달리 버튼을 수시로 눌러도 추가 공제 기입 내용이 유지됩니다.)
I35: (버튼 수시로 누르셔도 됩니다)
F37: 1) 근로소득간이세액표 | I37: 원천징수될 세액이 정리되어있습니다. 매년 달라지니 국세청에 관련 고지가 뜨면 업데이트해주세요.
F39: 2) 메모 | I39: 급여관련 특이사항을 메모해두려고 만들어 놓은 시트입니다.

Sheet 급여테이블 (hidden)
A1: 10 | B1: 비과세 한도 | I1: 200000 | J1: 200000
B2: 과세/비과세 | C2: 과세 | D2: 과세 | E2: 과세 | F2: 과세 | G2: 과세 | H2: 과세 | I2: 비과세 | J2: 비과세
B3: 지급월 | C3: 0 | D3: 0 | E3: 0 | F3: 6,12 | G3: 1,9,8,12 | H3: 1,9 | I3: 0 | J3: 0
A4: 연 환산 | B4: 직책(호봉) | C4: 기본급 | D4: 직책수당 | E4: 기술수당 | F4: 정근수당 | G4: 상여금 | H4: 명절수당 | I4: 식대 | J4: 자가운전보조금
A5: 35824800 | B5: 1 | C5: 2806900 | I5: =(_xlfn.DAYS(EOMONTH(총정리!A1&"-"&총정리!C1&"-1",0),총정리!A1&"-"&총정리!C1&"-1")+1-A1)*8500 -> 170000
A6: 39380000 | B6: 2 | C6: 1900000 | F6: 1900000 | G6: 1900000 | H6: 190000 | I6: 200000 | J6: 200000
A7: 41200000 | B7: 3 | C7: 2000000 | F7: 2000000 | G7: 2000000 | H7: 200000 | I7: 200000 | J7: 200000
A8: 43020000 | B8: 4 | C8: 2100000 | F8: 2100000 | G8: 2100000 | H8: 210000 | I8: 200000 | J8: 200000
A9: 44840000 | B9: 5 | C9: 2200000 | F9: 2200000 | G9: 2200000 | H9: 220000 | I9: 200000 | J9: 200000
A10: 46660000 | B10: 6 | C10: 2300000 | F10: 2300000 | G10: 2300000 | H10: 230000 | I10: 200000 | J10: 200000
A11: 48480000 | B11: 7 | C11: 2400000 | F11: 2400000 | G11: 2400000 | H11: 240000 | I11: 200000 | J11: 200000
A12: 50300000 | B12: 8 | C12: 2500000 | F12: 2500000 | G12: 2500000 | H12: 250000 | I12: 200000 | J12: 200000
A13: 52120000 | B13: 9 | C13: 2600000 | F13: 2600000 | G13: 2600000 | H13: 260000 | I13: 200000 | J13: 200000
A14: 53940000 | B14: 10 | C14: 2700000 | F14: 2700000 | G14: 2700000 | H14: 270000 | I14: 200000 | J14: 200000
A15: 39960000 | B15: 1(기) | C15: 1800000 | E15: 200000 | F15: 1800000 | G15: 1800000 | H15: 180000 | I15: 200000 | J15: 200000
A16: 41780000 | B16: 2(기) | C16: 1900000 | E16: 200000 | F16: 1900000 | G16: 1900000 | H16: 190000 | I16: 200000 | J16: 200000
A17: 43600000 | B17: 3(기) | C17: 2000000 | E17: 200000 | F17: 2000000 | G17: 2000000 | H17: 200000 | I17: 200000 | J17: 200000
A18: 45420000 | B18: 4(기) | C18: 2100000 | E18: 200000 | F18: 2100000 | G18: 2100000 | H18: 210000 | I18: 200000 | J18: 200000
A19: 47240000 | B19: 5(기) | C19: 2200000 | E19: 200000 | F19: 2200000 | G19: 2200000 | H19: 220000 | I19: 200000 | J19: 200000
A20: 36 | B20: 일용직 | C20: 1 | I20: 1 | J20: 1

Sheet 사원명단 (hidden)
F1: 공제정보 | H1: 급여계좌정보 | K1: 별도 추가 수당 | S1: 이하 기타정보
A2: 순번 | B2: 성명 | C2: 사번 | D2: 직책 | E2: 호봉(급여기준) | F2: 공제대상가족수 | G2: 8세 이상 20세 이하 자녀 수 | H2: 은행 | I2: 계좌번호 | J2: 계좌주 | K2: 수당1 | L2: 수당1금액 | M2: 수당2 | N2: 수당2금액 | O2: 수당3 | P2: 수당3금액 | Q2: 재직여부 | R2: 육휴 지급비율 | S2: 주민번호 | T2: 입사일 | U2: 주소
A3: 1 | B3: 경경경 | C3: 23001 | D3: 대표 | E3: 1 | F3: 2 | G3: 1 | H3: 우리 | I3: 1002-111-1111111 | J3: 경경경 | Q3: y | S3: 870321
A4: 2 | B4: 민민민 | C4: 23002 | D4: 대표 | E4: 1(기) | F4: 1 | H4: 국민 | I4: 320012-100-1200 | J4: 민민민 | Q4: y | S4: 870312
A5: 3 | B5: 홍길동 | C5: 23003 | D5: 직원 | E5: 3 | F5: 1 | G5: 0 | H5: 카카오 | I5: 3333-12-0000051 | J5: 홍길동 | Q5: y | S5: 870333
A6: 4 | B6: 스티브 | C6: 23004 | D6: 직원 | E6: 2 | F6: 1 | H6: 토스 | I6: 312-100-10000 | J6: 스티브 | Q6: n | S6: 900515
A7: 5 | B7: 김김김 | C7: 23005 | D7: 직원 | E7: 8 | F7: 1 | G7: 1 | H7: 신한 | I7: 110-10-100000 | J7: 김김김 | Q7: 육 | R7: 0 | S7: 950513
A8: 6 | B8: 홍홍홍 | C8: 23006 | D8: 직원 | E8: 3 | F8: 1 | H8: 농협 | I8: 089-71-540231 | J8: 홍홍홍 | Q8: 무 | S8: 870221
A9: 7 | B9: 길길길 | C9: 23007 | D9: 직원 | E9: 4(기) | F9: 1 | H9: 수협 | I9: 123-11-111100 | J9: 길길길 | Q9: y | S9: 650605
A10: 8 | B10: 동동동 | C10: 23008 | D10: 직원 | E10: 5 | F10: 1 | G10: 2 | H10: 광주 | I10: 11-120-4455000 | J10: 동동동 | Q10: n | S10: 880908
A11: 9 | B11: 이박 | C11: 23009 | D11: 일용직 | E11: 일용직 | F11: 1 | H11: 카카오 | I11: 3333-18-1055550 | J11: 이박 | Q11: 일 | S11: 970303

Sheet 추가근로정보 (hidden)
J1: 하루근무시간 | K1: =IF(M2>M1,HOUR(M2-M1)-K2,HOUR(24+M2-M1)-K2) -> 8 | L1: 근무시작시간 | M1: 09:00:00 | N1: 4시간근무 | O1: 0.5
J2: 휴게시간 | K2: =IF(M2>M1,IF(HOUR(M2-M1)>=9,O2,IF(HOUR(M2-M1)>=4.5,O1,"")),IF(HOUR(24+M2-M1)>=9,O2,IF(HOUR(24+M2-M1)>=4.5,O1,""))) -> 1 | L2: 근무종료시간 | M2: 18:00:00 | N2: 8시간근무 | O2: 1
F3: 시작시간 | H3: 종료시간 | J3: 시간외 | N3: 정규 | O3: 정규 | P3: 정규 | Q3: 정규
A4: 순번 | B4: 성명 | C4: 사번 | D4: 근로일자 | E4: 주/휴일 구분 | F4: 시 | G4: 분 | H4: 시 | I4: 분 | J4: 총시간 | K4: 휴일일반 | L4: 연장근로 | M4: 야간근로 | N4: 야간근로 | O4: 근무시작시간 | P4: 근무종료시간 | Q4: 휴게시간
A5: 1 | B5: 홍길동 | C5: 23003 | D5: 2023-11-20 | F5: 18 | G5: 0 | H5: 23 | I5: 0 | J5: 5 | L5: 4.5 | M5: 1 | N5: 0 | O5: 09:00:00 | P5: 18:00:00 | Q5: 1.5
A6: 2 | B6: 경경경 | C6: 23001 | D6: 2023-11-21 | F6: 18 | G6: 0 | H6: 19 | I6: 0 | J6: 1 | L6: 1 | M6: 0 | N6: 0 | O6: 09:00:00 | P6: 18:00:00 | Q6: 1
A7: 3 | B7: 민민민 | C7: 23002 | D7: 2023-11-19 | E7: 주말 | F7: 9 | G7: 0 | H7: 17 | I7: 0 | J7: 8 | K7: 7 | L7: 0 | M7: 0 | Q7: 1
A8: 4 | B8: 홍길동 | C8: 23003 | D8: 2023-11-18 | E8: 주말 | F8: 9 | G8: 0 | H8: 12 | I8: 0 | J8: 3 | K8: 3 | L8: 0 | M8: 0 | Q8: 0

Sheet 시간외수당 계산 (hidden)
R2: (야간 근무자 계산시 참고용)
L3: 특근수당 지급내역 | R3: 정규시간 | S3: 정규시간 | T3: 정규시간
A4: 순번 | B4: 성명 | C4: 사번 | D4: 평일(연장) | E4: 평일(야간) | F4: 휴일(일반) | G4: 휴일(연장) | H4: 휴일(야간) | I4: 특근일수 | J4: 통상임금 | K4: 시간당 단가 | L4: 평일(연장) | M4: 평일(야간) | N4: 휴일(일반) | O4: 휴일(연장) | P4: 휴일(야간) | Q4: 수당지급총액 | R4: 정규(야간) | S4: 금액 | T4: 일수
A5: 1 | B5: 홍길동 | C5: 23003 | D5: 4.5 | E5: 1 | F5: 3 | G5: 0 | H5: 0 | I5: 2 | J5: 3400001 | K5: =ROUNDUP(J5/209,-1) -> 16270 | L5: =ROUNDUP(D5*$K5*1.5,-1) -> 109830 | M5: 24410 | N5: 73220 | O5: =ROUNDUP(G5*$K5*2,-1) -> 0 | P5: 0 | Q5: =SUM(L5:P5) -> 207460 | R5: 0 | S5: =ROUNDUP(R5*$K5*1.5,-1) -> 0 | T5: 0
A6: 2 | B6: 경경경 | C6: 23001 | D6: 1 | E6: 0 | I6: 1 | J6: 2985400 | K6: =ROUNDUP(J6/209,-1) -> 14290 | L6: 21440 | M6: 0 | N6: 0 | O6: 0 | P6: 0 | Q6: =SUM(L6:P6) -> 21440 | S6: =ROUNDUP(R6*$K6*1.5,-1) -> 0
A7: 3 | B7: 민민민 | C7: 23002 | F7: 7 | G7: 0 | H7: 0 | I7: 1 | J7: 3300000 | K7: =ROUNDUP(J7/209,-1) -> 15790 | L7: 0 | M7: 0 | N7: 165800 | O7: 0 | P7: 0 | Q7: =SUM(L7:P7) -> 165800 | S7: =ROUNDUP(R7*$K7*1.5,-1) -> 0

Sheet 지급정보 (hidden)
C1: =총정리!C1 -> 11 | D1: 월
E3: 급여테이블 | K3: 시간외수당 | L3: 기타입력자료
A4: 순번 | B4: 성명 | C4: 사번 | D4: 호봉 | E4: 기본급 | F4: 직책수당 | G4: 기술수당 | H4: 식대 | I4: 자가운전보조금 | J4: 육휴수당 | K4: 연장/휴일/야간 | L4: 급여 외 과세합산금 | M4: 기타추가수당 | N4: 총과세합산금액 | O4: 총비과세금액
A5: 1 | B5: 경경경 | C5: 23001 | D5: 1 | E5: 2806900 | H5: 170000 | K5: =_xlfn.IFNA(VLOOKUP(C5,'시간외수당 계산'!C:Q,15,FALSE),0) -> 21440 | N5: 2828340 | O5: 170000
A6: 2 | B6: 민민민 | C6: 23002 | D6: 1(기) | E6: 1800000 | G6: 200000 | H6: 200000 | I6: 200000 | K6: =_xlfn.IFNA(VLOOKUP(C6,'시간외수당 계산'!C:Q,15,FALSE),0) -> 165800 | N6: 2165800 | O6: 400000
A7: 3 | B7: 홍길동 | C7: 23003 | D7: 3 | E7: 2000000 | H7: 200000 | I7: 200000 | K7: =_xlfn.IFNA(VLOOKUP(C7,'시간외수당 계산'!C:Q,15,FALSE),0) -> 207460 | N7: 2207460 | O7: 400000
A8: 4 | B8: 김김김 | C8: 23005 | D8: 8 | J8: 0 | K8: =_xlfn.IFNA(VLOOKUP(C8,'시간외수당 계산'!C:Q,15,FALSE),0) -> 0 | N8: 0 | O8: 0
A9: 5 | B9: 길길길 | C9: 23007 | D9: 4(기) | E9: 2100000 | G9: 200000 | H9: 200000 | I9: 200000 | K9: =_xlfn.IFNA(VLOOKUP(C9,'시간외수당 계산'!C:Q,15,FALSE),0) -> 0 | N9: 2300000 | O9: 400000
A10: 6 | B10: 이박 | C10: 23009 | D10: 일용직 | E10: 1 | H10: 1 | I10: 1 | K10: =_xlfn.IFNA(VLOOKUP(C10,'시간외수당 계산'!C:Q,15,FALSE),0) -> 0 | N10: 1 | O10: 2

Sheet 4대보험 정보 (hidden)
F1: 국민연금요율 | G1: 0.09 | H1: 고용보험요율 | I1: 0.0205 | K1: 국민연금 하한 | L1: 16650 | M1: 국민연금 상한 | N1: 265500
F2: 건강보험요율 | G2: 0.0709 | H2: 산재보험요율 | I2: 0.007 | K2: 건강보험 하한 | L2: 19780 | M2: 건강보험 상한 | N2: 7822560
F3: 장기요양보험요율 | G3: 0.1281 | H3: 고용안전보험요율 | I3: 0.0025
D4: 0.045 | E4: 0.03545 | F4: 0.1281 | G4: 0.009 | H4: 0.045 | I4: 0.03545 | J4: 0.1281 | K4: 0.0115 | L4: 0.007 | M4: 0.0025
D5: 근로자 부담 | H5: 법인부담 | O5: ↓매년 7월 갱신 | Q5: ↓매년 4월 갱신
A6: 순번 | B6: 성명 | C6: 사번 | D6: 국민연금 | E6: 건강보험 | F6: 장기요양보험 | G6: 고용보험 | H6: 국민연금 | I6: 건강보험 | J6: 장기요양보험 | K6: 고용보험 | L6: 산재보험 | M6: 고용안전보험 | N6: 특이사항 | O6: 전년도과세합산금(국민) | P6: 전년도 근무일수 | Q6: 전년도과세합산금(건보) | R6: 전년도 근무월수 | S6: 국민연금소득월액 | T6: 건강보험 보수월액
A7: 1 | B7: 경경경 | C7: 23001 | D7: =IF(ROUNDDOWN(S7*G1/2,-1)<L1,L1,IF(ROUNDDOWN(S7*G1/2,-1)>N1,N1,ROUNDDOWN(S7*G1/2,-1))) -> 158890 | E7: =IF(ROUNDDOWN(T7*G2/2,-1)<L2,L2,IF(ROUNDDOWN(T7*G2/2,-1)>N2,N2,ROUNDDOWN(T7*G2/2,-1))) -> 126930 | F7: =ROUNDDOWN(E7*G3,-1) -> 16250 | G7: =ROUNDDOWN(VLOOKUP(C7,지급정보!C:P,12,FALSE)*0.009,-1) -> 25450 | H7: =D7 -> 158890 | I7: 126930 | J7: 16250 | K7: =ROUNDDOWN(VLOOKUP(C7,지급정보!C:P,12,FALSE)*0.0115,-1) -> 32520 | L7: =ROUNDDOWN(VLOOKUP(C7,지급정보!C:P,12,FALSE)*I2,-1) -> 19790 | O7: 42967395 | P7: 365 | Q7: 42967395 | R7: 12 | S7: =ROUNDDOWN(O7/P7*30,-3) -> 3531000 | T7: =ROUNDDOWN(Q7/R7,0) -> 3580616
A8: 2 | B8: 민민민 | C8: 23002 | D8: =IF(ROUNDDOWN(S8*G1/2,-1)<L1,L1,IF(ROUNDDOWN(S8*G1/2,-1)>N1,N1,ROUNDDOWN(S8*G1/2,-1))) -> 110920 | E8: =IF(ROUNDDOWN(T8*G2/2,-1)<L2,L2,IF(ROUNDDOWN(T8*G2/2,-1)>N2,N2,ROUNDDOWN(T8*G2/2,-1))) -> 88620 | F8: =ROUNDDOWN(E8*G3,-1) -> 11350 | G8: =ROUNDDOWN(VLOOKUP(C8,지급정보!C:P,12,FALSE)*0.009,-1) -> 19490 | H8: 110920 | I8: 88620 | J8: 11350 | K8: =ROUNDDOWN(VLOOKUP(C8,지급정보!C:P,12,FALSE)*0.0115,-1) -> 24900 | L8: =ROUNDDOWN(VLOOKUP(C8,지급정보!C:P,12,FALSE)*I2,-1) -> 15160 | O8: 30000000 | P8: 365 | Q8: 30000000 | R8: 12 | S8: 2465000 | T8: 2500000
A9: 3 | B9: 홍길동 | C9: 23003 | D9: =IF(ROUNDDOWN(S9*G1/2,-1)<L1,L1,IF(ROUNDDOWN(S9*G1/2,-1)>N1,N1,ROUNDDOWN(S9*G1/2,-1))) -> 73930 | E9: =IF(ROUNDDOWN(T9*G2/2,-1)<L2,L2,IF(ROUNDDOWN(T9*G2/2,-1)>N2,N2,ROUNDDOWN(T9*G2/2,-1))) -> 59080 | F9: =ROUNDDOWN(E9*G3,-1) -> 7560 | G9: =ROUNDDOWN(VLOOKUP(C9,지급정보!C:P,12,FALSE)*0.009,-1) -> 19860 | H9: 73930 | I9: 59080 | J9: 7560 | K9: =ROUNDDOWN(VLOOKUP(C9,지급정보!C:P,12,FALSE)*0.0115,-1) -> 25380 | L9: =ROUNDDOWN(VLOOKUP(C9,지급정보!C:P,12,FALSE)*I2,-1) -> 15450 | O9: 20000000 | P9: 365 | Q9: 20000000 | R9: 12 | S9: 1643000 | T9: 1666666
A10: 4 | B10: 김김김 | C10: 23005 | D10: 0 | E10: 0 | F10: =ROUNDDOWN(E10*G3,-1) -> 0 | G10: =ROUNDDOWN(VLOOKUP(C10,지급정보!C:P,12,FALSE)*0.009,-1) -> 0 | H10: 0 | I10: 0 | J10: 0 | K10: =ROUNDDOWN(VLOOKUP(C10,지급정보!C:P,12,FALSE)*0.0115,-1) -> 0 | L10: =ROUNDDOWN(VLOOKUP(C10,지급정보!C:P,12,FALSE)*I2,-1) -> 0 | N10: 연금육휴예외,육휴유예 | O10: 47159260 | P10: 306 | Q10: 47159260 | R10: 10 | S10: 4623000 | T10: 4715926
A11: 5 | B11: 길길길 | C11: 23007 | D11: =IF(ROUNDDOWN(S11*G1/2,-1)<L1,L1,IF(ROUNDDOWN(S11*G1/2,-1)>N1,N1,ROUNDDOWN(S11*G1/2,-1))) -> 132750 | E11: =IF(ROUNDDOWN(T11*G2/2,-1)<L2,L2,IF(ROUNDDOWN(T11*G2/2,-1)>N2,N2,ROUNDDOWN(T11*G2/2,-1))) -> 106350 | F11: =ROUNDDOWN(E11*G3,-1) -> 13620 | G11: =ROUNDDOWN(VLOOKUP(C11,지급정보!C:P,12,FALSE)*0.009,-1) -> 20700 | H11: 132750 | I11: 106350 | J11: 13620 | K11: =ROUNDDOWN(VLOOKUP(C11,지급정보!C:P,12,FALSE)*0.0115,-1) -> 26450 | L11: =ROUNDDOWN(VLOOKUP(C11,지급정보!C:P,12,FALSE)*I2,-1) -> 16100 | O11: 30000000 | P11: 305 | Q11: 30000000 | R11: 10 | S11: 2950000 | T11: 3000000
A12: 6 | B12: 이박 | C12: 23009 | F12: =ROUNDDOWN(E12*G3,-1) -> 0 | G12: =ROUNDDOWN(VLOOKUP(C12,지급정보!C:P,12,FALSE)*0.009,-1) -> 0 | H12: 0 | I12: 0 | J12: 0 | K12: =ROUNDDOWN(VLOOKUP(C12,지급정보!C:P,12,FALSE)*0.0115,-1) -> 0 | L12: =ROUNDDOWN(VLOOKUP(C12,지급정보!C:P,12,FALSE)*I2,-1) -> 0 | O12: 0 | P12: 0 | Q12: 0 | R12: 0

Sheet 공제정보 (hidden)
J3: 기타공제
A4: 순번 | B4: 성명 | C4: 사번 | D4: 국민연금 | E4: 국민건강보험 | F4: 장기요양보험 | G4: 고용보험 | H4: 소득세 | I4: 지방세 | J4: 추가입력
A5: 1 | B5: 경경경 | C5: 23001 | D5: 158890 | E5: 126930 | F5: 16250 | G5: 25450 | H5: 25840 | I5: 2584
A6: 2 | B6: 민민민 | C6: 23002 | D6: 110920 | E6: 88620 | F6: 11350 | G6: 19490 | H6: 24660 | I6: 2466
A7: 3 | B7: 홍길동 | C7: 23003 | D7: 73930 | E7: 59080 | F7: 7560 | G7: 19860 | H7: 25950 | I7: 2595
A8: 4 | B8: 김김김 | C8: 23005 | D8: 0 | E8: 0 | F8: 0 | G8: 0
A9: 5 | B9: 길길길 | C9: 23007 | D9: 132750 | E9: 106350 | F9: 13620 | G9: 20700 | H9: 29160 | I9: 2916
A10: 6 | B10: 이박 | C10: 23009 | F10: 0 | G10: 0

Sheet 근로소득간이세액표 (hidden)
A1: 2023년 근로소득에 대한 간이세액표(제189조 관련)
A4: 월급여액(천원) [비과세 및 학자금 제외) | C4: 공제대상가족의 수
C5: 1 | D5: 2 | E5: 3 | F5: 4 | G5: 5 | H5: 6 | I5: 7 | J5: 8 | K5: 9 | L5: 10 | M5: 11
A6: 이상 | B6: 미만
A7: 770 | B7: 775 | C7: 0 | D7: 0 | E7: 0 | F7: 0 | G7: 0 | H7: 0 | I7: 0 | J7: 0 | K7: 0 | L7: 0 | M7: 0
A8: 775 | B8: 780 | C8: 0 | D8: 0 | E8: 0 | F8: 0 | G8: 0 | H8: 0 | I8: 0 | J8: 0 | K8: 0 | L8: 0 | M8: 0
A9: 780 | B9: 785 | C9: 0 | D9: 0 | E9: 0 | F9: 0 | G9: 0 | H9: 0 | I9: 0 | J9: 0 | K9: 0 | L9: 0 | M9: 0
A10: 785 | B10: 790 | C10: 0 | D10: 0 | E10: 0 | F10: 0 | G10: 0 | H10: 0 | I10: 0 | J10: 0 | K10: 0 | L10: 0 | M10: 0
A11: 790 | B11: 795 | C11: 0 | D11: 0 | E11: 0 | F11: 0 | G11: 0 | H11: 0 | I11: 0 | J11: 0 | K11: 0 | L11: 0 | M11: 0
A12: 795 | B12: 800 | C12: 0 | D12: 0 | E12: 0 | F12: 0 | G12: 0 | H12: 0 | I12: 0 | J12: 0 | K12: 0 | L12: 0 | M12: 0
A13: 800 | B13: 805 | C13: 0 | D13: 0 | E13: 0 | F13: 0 | G13: 0 | H13: 0 | I13: 0 | J13: 0 | K13: 0 | L13: 0 | M13: 0
A14: 805 | B14: 810 | C14: 0 | D14: 0 | E14: 0 | F14: 0 | G14: 0 | H14: 0 | I14: 0 | J14: 0 | K14: 0 | L14: 0 | M14: 0
A15: 810 | B15: 815 | C15: 0 | D15: 0 | E15: 0 | F15: 0 | G15: 0 | H15: 0 | I15: 0 | J15: 0 | K15: 0 | L15: 0 | M15: 0
A16: 815 | B16: 820 | C16: 0 | D16: 0 | E16: 0 | F16: 0 | G16: 0 | H16: 0 | I16: 0 | J16: 0 | K16: 0 | L16: 0 | M16: 0
A17: 820 | B17: 825 | C17: 0 | D17: 0 | E17: 0 | F17: 0 | G17: 0 | H17: 0 | I17: 0 | J17: 0 | K17: 0 | L17: 0 | M17: 0
A18: 825 | B18: 830 | C18: 0 | D18: 0 | E18: 0 | F18: 0 | G18: 0 | H18: 0 | I18: 0 | J18: 0 | K18: 0 | L18: 0 | M18: 0
A19: 830 | B19: 835 | C19: 0 | D19: 0 | E19: 0 | F19: 0 | G19: 0 | H19: 0 | I19: 0 | J19: 0 | K19: 0 | L19: 0 | M19: 0
A20: 835 | B20: 840 | C20: 0 | D20: 0 | E20: 0 | F20: 0 | G20: 0 | H20: 0 | I20: 0 | J20: 0 | K20: 0 | L20: 0 | M20: 0
A21: 840 | B21: 845 | C21: 0 | D21: 0 | E21: 0 | F21: 0 | G21: 0 | H21: 0 | I21: 0 | J21: 0 | K21: 0 | L21: 0 | M21: 0
A22: 845 | B22: 850 | C22: 0 | D22: 0 | E22: 0 | F22: 0 | G22: 0 | H22: 0 | I22: 0 | J22: 0 | K22: 0 | L22: 0 | M22: 0
A23: 850 | B23: 855 | C23: 0 | D23: 0 | E23: 0 | F23: 0 | G23: 0 | H23: 0 | I23: 0 | J23: 0 | K23: 0 | L23: 0 | M23: 0
A24: 855 | B24: 860 | C24: 0 | D24: 0 | E24: 0 | F24: 0 | G24: 0 | H24: 0 | I24: 0 | J24: 0 | K24: 0 | L24: 0 | M24: 0
A25: 860 | B25: 865 | C25: 0 | D25: 0 | E25: 0 | F25: 0 | G25: 0 | H25: 0 | I25: 0 | J25: 0 | K25: 0 | L25: 0 | M25: 0
A26: 865 | B26: 870 | C26: 0 | D26: 0 | E26: 0 | F26: 0 | G26: 0 | H26: 0 | I26: 0 | J26: 0 | K26: 0 | L26: 0 | M26: 0
A27: 870 | B27: 875 | C27: 0 | D27: 0 | E27: 0 | F27: 0 | G27: 0 | H27: 0 | I27: 0 | J27: 0 | K27: 0 | L27: 0 | M27: 0
A28: 875 | B28: 880 | C28: 0 | D28: 0 | E28: 0 | F28: 0 | G28: 0 | H28: 0 | I28: 0 | J28: 0 | K28: 0 | L28: 0 | M28: 0
A29: 880 | B29: 885 | C29: 0 | D29: 0 | E29: 0 | F29: 0 | G29: 0 | H29: 0 | I29: 0 | J29: 0 | K29: 0 | L29: 0 | M29: 0
A30: 885 | B30: 890 | C30: 0 | D30: 0 | E30: 0 | F30: 0 | G30: 0 | H30: 0 | I30: 0 | J30: 0 | K30: 0 | L30: 0 | M30: 0
A31: 890 | B31: 895 | C31: 0 | D31: 0 | E31: 0 | F31: 0 | G31: 0 | H31: 0 | I31: 0 | J31: 0 | K31: 0 | L31: 0 | M31: 0
A32: 895 | B32: 900 | C32: 0 | D32: 0 | E32: 0 | F32: 0 | G32: 0 | H32: 0 | I32: 0 | J32: 0 | K32: 0 | L32: 0 | M32: 0
A33: 900 | B33: 905 | C33: 0 | D33: 0 | E33: 0 | F33: 0 | G33: 0 | H33: 0 | I33: 0 | J33: 0 | K33: 0 | L33: 0 | M33: 0
A34: 905 | B34: 910 | C34: 0 | D34: 0 | E34: 0 | F34: 0 | G34: 0 | H34: 0 | I34: 0 | J34: 0 | K34: 0 | L34: 0 | M34: 0
A35: 910 | B35: 915 | C35: 0 | D35: 0 | E35: 0 | F35: 0 | G35: 0 | H35: 0 | I35: 0 | J35: 0 | K35: 0 | L35: 0 | M35: 0
A36: 915 | B36: 920 | C36: 0 | D36: 0 | E36: 0 | F36: 0 | G36: 0 | H36: 0 | I36: 0 | J36: 0 | K36: 0 | L36: 0 | M36: 0
A37: 920 | B37: 925 | C37: 0 | D37: 0 | E37: 0 | F37: 0 | G37: 0 | H37: 0 | I37: 0 | J37: 0 | K37: 0 | L37: 0 | M37: 0
A38: 925 | B38: 930 | C38: 0 | D38: 0 | E38: 0 | F38: 0 | G38: 0 | H38: 0 | I38: 0 | J38: 0 | K38: 0 | L38: 0 | M38: 0
A39: 930 | B39: 935 | C39: 0 | D39: 0 | E39: 0 | F39: 0 | G39: 0 | H39: 0 | I39: 0 | J39: 0 | K39: 0 | L39: 0 | M39: 0
A40: 935 | B40: 940 | C40: 0 | D40: 0 | E40: 0 | F40: 0 | G40: 0 | H40: 0 | I40: 0 | J40: 0 | K40: 0 | L40: 0 | M40: 0
A41: 940 | B41: 945 | C41: 0 | D41: 0 | E41: 0 | F41: 0 | G41: 0 | H41: 0 | I41: 0 | J41: 0 | K41: 0 | L41: 0 | M41: 0
A42: 945 | B42: 950 | C42: 0 | D42: 0 | E42: 0 | F42: 0 | G42: 0 | H42: 0 | I42: 0 | J42: 0 | K42: 0 | L42: 0 | M42: 0
A43: 950 | B43: 955 | C43: 0 | D43: 0 | E43: 0 | F43: 0 | G43: 0 | H43: 0 | I43: 0 | J43: 0 | K43: 0 | L43: 0 | M43: 0
A44: 955 | B44: 960 | C44: 0 | D44: 0 | E44: 0 | F44: 0 | G44: 0 | H44: 0 | I44: 0 | J44: 0 | K44: 0 | L44: 0 | M44: 0
A45: 960 | B45: 965 | C45: 0 | D45: 0 | E45: 0 | F45: 0 | G45: 0 | H45: 0 | I45: 0 | J45: 0 | K45: 0 | L45: 0 | M45: 0
A46: 965 | B46: 970 | C46: 0 | D46: 0 | E46: 0 | F46: 0 | G46: 0 | H46: 0 | I46: 0 | J46: 0 | K46: 0 | L46: 0 | M46: 0
A47: 970 | B47: 975 | C47: 0 | D47: 0 | E47: 0 | F47: 0 | G47: 0 | H47: 0 | I47: 0 | J47: 0 | K47: 0 | L47: 0 | M47: 0
A48: 975 | B48: 980 | C48: 0 | D48: 0 | E48: 0 | F48: 0 | G48: 0 | H48: 0 | I48: 0 | J48: 0 | K48: 0 | L48: 0 | M48: 0
A49: 980 | B49: 985 | C49: 0 | D49: 0 | E49: 0 | F49: 0 | G49: 0 | H49: 0 | I49: 0 | J49: 0 | K49: 0 | L49: 0 | M49: 0
A50: 985 | B50: 990 | C50: 0 | D50: 0 | E50: 0 | F50: 0 | G50: 0 | H50: 0 | I50: 0 | J50: 0 | K50: 0 | L50: 0 | M50: 0
A51: 990 | B51: 995 | C51: 0 | D51: 0 | E51: 0 | F51: 0 | G51: 0 | H51: 0 | I51: 0 | J51: 0 | K51: 0 | L51: 0 | M51: 0
A52: 995 | B52: 1000 | C52: 0 | D52: 0 | E52: 0 | F52: 0 | G52: 0 | H52: 0 | I52: 0 | J52: 0 | K52: 0 | L52: 0 | M52: 0
A53: 1000 | B53: 1005 | C53: 0 | D53: 0 | E53: 0 | F53: 0 | G53: 0 | H53: 0 | I53: 0 | J53: 0 | K53: 0 | L53: 0 | M53: 0
A54: 1005 | B54: 1010 | C54: 0 | D54: 0 | E54: 0 | F54: 0 | G54: 0 | H54: 0 | I54: 0 | J54: 0 | K54: 0 | L54: 0 | M54: 0
A55: 1010 | B55: 1015 | C55: 0 | D55: 0 | E55: 0 | F55: 0 | G55: 0 | H55: 0 | I55: 0 | J55: 0 | K55: 0 | L55: 0 | M55: 0
A56: 1015 | B56: 1020 | C56: 0 | D56: 0 | E56: 0 | F56: 0 | G56: 0 | H56: 0 | I56: 0 | J56: 0 | K56: 0 | L56: 0 | M56: 0
A57: 1020 | B57: 1025 | C57: 0 | D57: 0 | E57: 0 | F57: 0 | G57: 0 | H57: 0 | I57: 0 | J57: 0 | K57: 0 | L57: 0 | M57: 0
A58: 1025 | B58: 1030 | C58: 0 | D58: 0 | E58: 0 | F58: 0 | G58: 0 | H58: 0 | I58: 0 | J58: 0 | K58: 0 | L58: 0 | M58: 0
A59: 1030 | B59: 1035 | C59: 0 | D59: 0 | E59: 0 | F59: 0 | G59: 0 | H59: 0 | I59: 0 | J59: 0 | K59: 0 | L59: 0 | M59: 0
A60: 1035 | B60: 1040 | C60: 0 | D60: 0 | E60: 0 | F60: 0 | G60: 0 | H60: 0 | I60: 0 | J60: 0 | K60: 0 | L60: 0 | M60: 0
A61: 1040 | B61: 1045 | C61: 0 | D61: 0 | E61: 0 | F61: 0 | G61: 0 | H61: 0 | I61: 0 | J61: 0 | K61: 0 | L61: 0 | M61: 0
A62: 1045 | B62: 1050 | C62: 0 | D62: 0 | E62: 0 | F62: 0 | G62: 0 | H62: 0 | I62: 0 | J62: 0 | K62: 0 | L62: 0 | M62: 0
A63: 1050 | B63: 1055 | C63: 0 | D63: 0 | E63: 0 | F63: 0 | G63: 0 | H63: 0 | I63: 0 | J63: 0 | K63: 0 | L63: 0 | M63: 0
A64: 1055 | B64: 1060 | C64: 0 | D64: 0 | E64: 0 | F64: 0 | G64: 0 | H64: 0 | I64: 0 | J64: 0 | K64: 0 | L64: 0 | M64: 0
A65: 1060 | B65: 1065 | C65: 1040 | D65: 0 | E65: 0 | F65: 0 | G65: 0 | H65: 0 | I65: 0 | J65: 0 | K65: 0 | L65: 0 | M65: 0
A66: 1065 | B66: 1070 | C66: 1110 | D66: 0 | E66: 0 | F66: 0 | G66: 0 | H66: 0 | I66: 0 | J66: 0 | K66: 0 | L66: 0 | M66: 0
A67: 1070 | B67: 1075 | C67: 1180 | D67: 0 | E67: 0 | F67: 0 | G67: 0 | H67: 0 | I67: 0 | J67: 0 | K67: 0 | L67: 0 | M67: 0
A68: 1075 | B68: 1080 | C68: 1250 | D68: 0 | E68: 0 | F68: 0 | G68: 0 | H68: 0 | I68: 0 | J68: 0 | K68: 0 | L68: 0 | M68: 0
A69: 1080 | B69: 1085 | C69: 1320 | D69: 0 | E69: 0 | F69: 0 | G69: 0 | H69: 0 | I69: 0 | J69: 0 | K69: 0 | L69: 0 | M69: 0
A70: 1085 | B70: 1090 | C70: 1390 | D70: 0 | E70: 0 | F70: 0 | G70: 0 | H70: 0 | I70: 0 | J70: 0 | K70: 0 | L70: 0 | M70: 0
A71: 1090 | B71: 1095 | C71: 1460 | D71: 0 | E71: 0 | F71: 0 | G71: 0 | H71: 0 | I71: 0 | J71: 0 | K71: 0 | L71: 0 | M71: 0
A72: 1095 | B72: 1100 | C72: 1530 | D72: 0 | E72: 0 | F72: 0 | G72: 0 | H72: 0 | I72: 0 | J72: 0 | K72: 0 | L72: 0 | M72: 0
A73: 1100 | B73: 1105 | C73: 1600 | D73: 0 | E73: 0 | F73: 0 | G73: 0 | H73: 0 | I73: 0 | J73: 0 | K73: 0 | L73: 0 | M73: 0
A74: 1105 | B74: 1110 | C74: 1670 | D74: 0 | E74: 0 | F74: 0 | G74: 0 | H74: 0 | I74: 0 | J74: 0 | K74: 0 | L74: 0 | M74: 0
A75: 1110 | B75: 1115 | C75: 1740 | D75: 0 | E75: 0 | F75: 0 | G75: 0 | H75: 0 | I75: 0 | J75: 0 | K75: 0 | L75: 0 | M75: 0
A76: 1115 | B76: 1120 | C76: 1810 | D76: 0 | E76: 0 | F76: 0 | G76: 0 | H76: 0 | I76: 0 | J76: 0 | K76: 0 | L76: 0 | M76: 0
A77: 1120 | B77: 1125 | C77: 1880 | D77: 0 | E77: 0 | F77: 0 | G77: 0 | H77: 0 | I77: 0 | J77: 0 | K77: 0 | L77: 0 | M77: 0
A78: 1125 | B78: 1130 | C78: 1950 | D78: 0 | E78: 0 | F78: 0 | G78: 0 | H78: 0 | I78: 0 | J78: 0 | K78: 0 | L78: 0 | M78: 0
A79: 1130 | B79: 1135 | C79: 2020 | D79: 0 | E79: 0 | F79: 0 | G79: 0 | H79: 0 | I79: 0 | J79: 0 | K79: 0 | L79: 0 | M79: 0
A80: 1135 | B80: 1140 | C80: 2090 | D80: 0 | E80: 0 | F80: 0 | G80: 0 | H80: 0 | I80: 0 | J80: 0 | K80: 0 | L80: 0 | M80: 0
A81: 1140 | B81: 1145 | C81: 2160 | D81: 0 | E81: 0 | F81: 0 | G81: 0 | H81: 0 | I81: 0 | J81: 0 | K81: 0 | L81: 0 | M81: 0
A82: 1145 | B82: 1150 | C82: 2230 | D82: 0 | E82: 0 | F82: 0 | G82: 0 | H82: 0 | I82: 0 | J82: 0 | K82: 0 | L82: 0 | M82: 0
A83: 1150 | B83: 1155 | C83: 2300 | D83: 0 | E83: 0 | F83: 0 | G83: 0 | H83: 0 | I83: 0 | J83: 0 | K83: 0 | L83: 0 | M83: 0
A84: 1155 | B84: 1160 | C84: 2370 | D84: 0 | E84: 0 | F84: 0 | G84: 0 | H84: 0 | I84: 0 | J84: 0 | K84: 0 | L84: 0 | M84: 0
A85: 1160 | B85: 1165 | C85: 2440 | D85: 0 | E85: 0 | F85: 0 | G85: 0 | H85: 0 | I85: 0 | J85: 0 | K85: 0 | L85: 0 | M85: 0
A86: 1165 | B86: 1170 | C86: 2500 | D86: 0 | E86: 0 | F86: 0 | G86: 0 | H86: 0 | I86: 0 | J86: 0 | K86: 0 | L86: 0 | M86: 0
A87: 1170 | B87: 1175 | C87: 2570 | D87: 0 | E87: 0 | F87: 0 | G87: 0 | H87: 0 | I87: 0 | J87: 0 | K87: 0 | L87: 0 | M87: 0
A88: 1175 | B88: 1180 | C88: 2640 | D88: 0 | E88: 0 | F88: 0 | G88: 0 | H88: 0 | I88: 0 | J88: 0 | K88: 0 | L88: 0 | M88: 0
A89: 1180 | B89: 1185 | C89: 2710 | D89: 0 | E89: 0 | F89: 0 | G89: 0 | H89: 0 | I89: 0 | J89: 0 | K89: 0 | L89: 0 | M89: 0
A90: 1185 | B90: 1190 | C90: 2780 | D90: 0 | E90: 0 | F90: 0 | G90: 0 | H90: 0 | I90: 0 | J90: 0 | K90: 0 | L90: 0 | M90: 0
A91: 1190 | B91: 1195 | C91: 2850 | D91: 0 | E91: 0 | F91: 0 | G91: 0 | H91: 0 | I91: 0 | J91: 0 | K91: 0 | L91: 0 | M91: 0
A92: 1195 | B92: 1200 | C92: 2920 | D92: 0 | E92: 0 | F92: 0 | G92: 0 | H92: 0 | I92: 0 | J92: 0 | K92: 0 | L92: 0 | M92: 0
A93: 1200 | B93: 1205 | C93: 2990 | D93: 0 | E93: 0 | F93: 0 | G93: 0 | H93: 0 | I93: 0 | J93: 0 | K93: 0 | L93: 0 | M93: 0
A94: 1205 | B94: 1210 | C94: 3060 | D94: 0 | E94: 0 | F94: 0 | G94: 0 | H94: 0 | I94: 0 | J94: 0 | K94: 0 | L94: 0 | M94: 0
A95: 1210 | B95: 1215 | C95: 3130 | D95: 0 | E95: 0 | F95: 0 | G95: 0 | H95: 0 | I95: 0 | J95: 0 | K95: 0 | L95: 0 | M95: 0
A96: 1215 | B96: 1220 | C96: 3200 | D96: 0 | E96: 0 | F96: 0 | G96: 0 | H96: 0 | I96: 0 | J96: 0 | K96: 0 | L96: 0 | M96: 0
A97: 1220 | B97: 1225 | C97: 3270 | D97: 0 | E97: 0 | F97: 0 | G97: 0 | H97: 0 | I97: 0 | J97: 0 | K97: 0 | L97: 0 | M97: 0
A98: 1225 | B98: 1230 | C98: 3340 | D98: 0 | E98: 0 | F98: 0 | G98: 0 | H98: 0 | I98: 0 | J98: 0 | K98: 0 | L98: 0 | M98: 0
A99: 1230 | B99: 1235 | C99: 3410 | D99: 0 | E99: 0 | F99: 0 | G99: 0 | H99: 0 | I99: 0 | J99: 0 | K99: 0 | L99: 0 | M99: 0
A100: 1235 | B100: 1240 | C100: 3480 | D100: 0 | E100: 0 | F100: 0 | G100: 0 | H100: 0 | I100: 0 | J100: 0 | K100: 0 | L100: 0 | M100: 0
A101: 1240 | B101: 1245 | C101: 3550 | D101: 0 | E101: 0 | F101: 0 | G101: 0 | H101: 0 | I101: 0 | J101: 0 | K101: 0 | L101: 0 | M101: 0
A102: 1245 | B102: 1250 | C102: 3620 | D102: 0 | E102: 0 | F102: 0 | G102: 0 | H102: 0 | I102: 0 | J102: 0 | K102: 0 | L102: 0 | M102: 0
A103: 1250 | B103: 1255 | C103: 3700 | D103: 0 | E103: 0 | F103: 0 | G103: 0 | H103: 0 | I103: 0 | J103: 0 | K103: 0 | L103: 0 | M103: 0
A104: 1255 | B104: 1260 | C104: 3810 | D104: 0 | E104: 0 | F104: 0 | G104: 0 | H104: 0 | I104: 0 | J104: 0 | K104: 0 | L104: 0 | M104: 0
A105: 1260 | B105: 1265 | C105: 3910 | D105: 0 | E105: 0 | F105: 0 | G105: 0 | H105: 0 | I105: 0 | J105: 0 | K105: 0 | L105: 0 | M105: 0
A106: 1265 | B106: 1270 | C106: 4010 | D106: 0 | E106: 0 | F106: 0 | G106: 0 | H106: 0 | I106: 0 | J106: 0 | K106: 0 | L106: 0 | M106: 0
A107: 1270 | B107: 1275 | C107: 4120 | D107: 0 | E107: 0 | F107: 0 | G107: 0 | H107: 0 | I107: 0 | J107: 0 | K107: 0 | L107: 0 | M107: 0
A108: 1275 | B108: 1280 | C108: 4220 | D108: 0 | E108: 0 | F108: 0 | G108: 0 | H108: 0 | I108: 0 | J108: 0 | K108: 0 | L108: 0 | M108: 0
A109: 1280 | B109: 1285 | C109: 4320 | D109: 0 | E109: 0 | F109: 0 | G109: 0 | H109: 0 | I109: 0 | J109: 0 | K109: 0 | L109: 0 | M109: 0
A110: 1285 | B110: 1290 | C110: 4430 | D110: 0 | E110: 0 | F110: 0 | G110: 0 | H110: 0 | I110: 0 | J110: 0 | K110: 0 | L110: 0 | M110: 0
A111: 1290 | B111: 1295 | C111: 4530 | D111: 0 | E111: 0 | F111: 0 | G111: 0 | H111: 0 | I111: 0 | J111: 0 | K111: 0 | L111: 0 | M111: 0
A112: 1295 | B112: 1300 | C112: 4630 | D112: 0 | E112: 0 | F112: 0 | G112: 0 | H112: 0 | I112: 0 | J112: 0 | K112: 0 | L112: 0 | M112: 0
A113: 1300 | B113: 1305 | C113: 4740 | D113: 0 | E113: 0 | F113: 0 | G113: 0 | H113: 0 | I113: 0 | J113: 0 | K113: 0 | L113: 0 | M113: 0
A114: 1305 | B114: 1310 | C114: 4840 | D114: 0 | E114: 0 | F114: 0 | G114: 0 | H114: 0 | I114: 0 | J114: 0 | K114: 0 | L114: 0 | M114: 0
A115: 1310 | B115: 1315 | C115: 4940 | D115: 0 | E115: 0 | F115: 0 | G115: 0 | H115: 0 | I115: 0 | J115: 0 | K115: 0 | L115: 0 | M115: 0
A116: 1315 | B116: 1320 | C116: 5050 | D116: 0 | E116: 0 | F116: 0 | G116: 0 | H116: 0 | I116: 0 | J116: 0 | K116: 0 | L116: 0 | M116: 0
A117: 1320 | B117: 1325 | C117: 5150 | D117: 0 | E117: 0 | F117: 0 | G117: 0 | H117: 0 | I117: 0 | J117: 0 | K117: 0 | L117: 0 | M117: 0
A118: 1325 | B118: 1330 | C118: 5250 | D118: 0 | E118: 0 | F118: 0 | G118: 0 | H118: 0 | I118: 0 | J118: 0 | K118: 0 | L118: 0 | M118: 0
A119: 1330 | B119: 1335 | C119: 5360 | D119: 0 | E119: 0 | F119: 0 | G119: 0 | H119: 0 | I119: 0 | J119: 0 | K119: 0 | L119: 0 | M119: 0
A120: 1335 | B120: 1340 | C120: 5460 | D120: 0 | E120: 0 | F120: 0 | G120: 0 | H120: 0 | I120: 0 | J120: 0 | K120: 0 | L120: 0 | M120: 0
A121: 1340 | B121: 1345 | C121: 5560 | D121: 1060 | E121: 0 | F121: 0 | G121: 0 | H121: 0 | I121: 0 | J121: 0 | K121: 0 | L121: 0 | M121: 0
A122: 1345 | B122: 1350 | C122: 5670 | D122: 1170 | E122: 0 | F122: 0 | G122: 0 | H122: 0 | I122: 0 | J122: 0 | K122: 0 | L122: 0 | M122: 0
A123: 1350 | B123: 1355 | C123: 5770 | D123: 1270 | E123: 0 | F123: 0 | G123: 0 | H123: 0 | I123: 0 | J123: 0 | K123: 0 | L123: 0 | M123: 0
A124: 1355 | B124: 1360 | C124: 5870 | D124: 1370 | E124: 0 | F124: 0 | G124: 0 | H124: 0 | I124: 0 | J124: 0 | K124: 0 | L124: 0 | M124: 0
A125: 1360 | B125: 1365 | C125: 5980 | D125: 1480 | E125: 0 | F125: 0 | G125: 0 | H125: 0 | I125: 0 | J125: 0 | K125: 0 | L125: 0 | M125: 0
A126: 1365 | B126: 1370 | C126: 6080 | D126: 1580 | E126: 0 | F126: 0 | G126: 0 | H126: 0 | I126: 0 | J126: 0 | K126: 0 | L126: 0 | M126: 0
A127: 1370 | B127: 1375 | C127: 6180 | D127: 1680 | E127: 0 | F127: 0 | G127: 0 | H127: 0 | I127: 0 | J127: 0 | K127: 0 | L127: 0 | M127: 0
A128: 1375 | B128: 1380 | C128: 6290 | D128: 1790 | E128: 0 | F128: 0 | G128: 0 | H128: 0 | I128: 0 | J128: 0 | K128: 0 | L128: 0 | M128: 0
A129: 1380 | B129: 1385 | C129: 6390 | D129: 1890 | E129: 0 | F129: 0 | G129: 0 | H129: 0 | I129: 0 | J129: 0 | K129: 0 | L129: 0 | M129: 0
A130: 1385 | B130: 1390 | C130: 6490 | D130: 1990 | E130: 0 | F130: 0 | G130: 0 | H130: 0 | I130: 0 | J130: 0 | K130: 0 | L130: 0 | M130: 0
A131: 1390 | B131: 1395 | C131: 6600 | D131: 2100 | E131: 0 | F131: 0 | G131: 0 | H131: 0 | I131: 0 | J131: 0 | K131: 0 | L131: 0 | M131: 0
A132: 1395 | B132: 1400 | C132: 6700 | D132: 2200 | E132: 0 | F132: 0 | G132: 0 | H132: 0 | I132: 0 | J132: 0 | K132: 0 | L132: 0 | M132: 0
A133: 1400 | B133: 1405 | C133: 6800 | D133: 2300 | E133: 0 | F133: 0 | G133: 0 | H133: 0 | I133: 0 | J133: 0 | K133: 0 | L133: 0 | M133: 0
A134: 1405 | B134: 1410 | C134: 6910 | D134: 2410 | E134: 0 | F134: 0 | G134: 0 | H134: 0 | I134: 0 | J134: 0 | K134: 0 | L134: 0 | M134: 0
A135: 1410 | B135: 1415 | C135: 7010 | D135: 2510 | E135: 0 | F135: 0 | G135: 0 | H135: 0 | I135: 0 | J135: 0 | K135: 0 | L135: 0 | M135: 0
A136: 1415 | B136: 1420 | C136: 7110 | D136: 2610 | E136: 0 | F136: 0 | G136: 0 | H136: 0 | I136: 0 | J136: 0 | K136: 0 | L136: 0 | M136: 0
A137: 1420 | B137: 1425 | C137: 7210 | D137: 2710 | E137: 0 | F137: 0 | G137: 0 | H137: 0 | I137: 0 | J137: 0 | K137: 0 | L137: 0 | M137: 0
A138: 1425 | B138: 1430 | C138: 7320 | D138: 2820 | E138: 0 | F138: 0 | G138: 0 | H138: 0 | I138: 0 | J138: 0 | K138: 0 | L138: 0 | M138: 0
A139: 1430 | B139: 1435 | C139: 7420 | D139: 2920 | E139: 0 | F139: 0 | G139: 0 | H139: 0 | I139: 0 | J139: 0 | K139: 0 | L139: 0 | M139: 0
A140: 1435 | B140: 1440 | C140: 7520 | D140: 3020 | E140: 0 | F140: 0 | G140: 0 | H140: 0 | I140: 0 | J140: 0 | K140: 0 | L140: 0 | M140: 0
A141: 1440 | B141: 1445 | C141: 7630 | D141: 3130 | E141: 0 | F141: 0 | G141: 0 | H141: 0 | I141: 0 | J141: 0 | K141: 0 | L141: 0 | M141: 0
A142: 1445 | B142: 1450 | C142: 7730 | D142: 3230 | E142: 0 | F142: 0 | G142: 0 | H142: 0 | I142: 0 | J142: 0 | K142: 0 | L142: 0 | M142: 0
A143: 1450 | B143: 1455 | C143: 7830 | D143: 3330 | E143: 0 | F143: 0 | G143: 0 | H143: 0 | I143: 0 | J143: 0 | K143: 0 | L143: 0 | M143: 0
A144: 1455 | B144: 1460 | C144: 7940 | D144: 3440 | E144: 0 | F144: 0 | G144: 0 | H144: 0 | I144: 0 | J144: 0 | K144: 0 | L144: 0 | M144: 0
A145: 1460 | B145: 1465 | C145: 8040 | D145: 3540 | E145: 0 | F145: 0 | G145: 0 | H145: 0 | I145: 0 | J145: 0 | K145: 0 | L145: 0 | M145: 0
A146: 1465 | B146: 1470 | C146: 8140 | D146: 3640 | E146: 0 | F146: 0 | G146: 0 | H146: 0 | I146: 0 | J146: 0 | K146: 0 | L146: 0 | M146: 0
A147: 1470 | B147: 1475 | C147: 8250 | D147: 3750 | E147: 0 | F147: 0 | G147: 0 | H147: 0 | I147: 0 | J147: 0 | K147: 0 | L147: 0 | M147: 0
A148: 1475 | B148: 1480 | C148: 8350 | D148: 3850 | E148: 0 | F148: 0 | G148: 0 | H148: 0 | I148: 0 | J148: 0 | K148: 0 | L148: 0 | M148: 0
A149: 1480 | B149: 1485 | C149: 8450 | D149: 3950 | E149: 0 | F149: 0 | G149: 0 | H149: 0 | I149: 0 | J149: 0 | K149: 0 | L149: 0 | M149: 0
A150: 1485 | B150: 1490 | C150: 8560 | D150: 4060 | E150: 0 | F150: 0 | G150: 0 | H150: 0 | I150: 0 | J150: 0 | K150: 0 | L150: 0 | M150: 0
A151: 1490 | B151: 1495 | C151: 8660 | D151: 4160 | E151: 0 | F151: 0 | G151: 0 | H151: 0 | I151: 0 | J151: 0 | K151: 0 | L151: 0 | M151: 0
A152: 1495 | B152: 1500 | C152: 8760 | D152: 4260 | E152: 0 | F152: 0 | G152: 0 | H152: 0 | I152: 0 | J152: 0 | K152: 0 | L152: 0 | M152: 0
A153: 1500 | B153: 1510 | C153: 8920 | D153: 4420 | E153: 0 | F153: 0 | G153: 0 | H153: 0 | I153: 0 | J153: 0 | K153: 0 | L153: 0 | M153: 0
A154: 1510 | B154: 1520 | C154: 9120 | D154: 4620 | E154: 0 | F154: 0 | G154: 0 | H154: 0 | I154: 0 | J154: 0 | K154: 0 | L154: 0 | M154: 0
A155: 1520 | B155: 1530 | C155: 9330 | D155: 4830 | E155: 0 | F155: 0 | G155: 0 | H155: 0 | I155: 0 | J155: 0 | K155: 0 | L155: 0 | M155: 0
A156: 1530 | B156: 1540 | C156: 9540 | D156: 5040 | E156: 0 | F156: 0 | G156: 0 | H156: 0 | I156: 0 | J156: 0 | K156: 0 | L156: 0 | M156: 0
A157: 1540 | B157: 1550 | C157: 9740 | D157: 5240 | E157: 0 | F157: 0 | G157: 0 | H157: 0 | I157: 0 | J157: 0 | K157: 0 | L157: 0 | M157: 0
A158: 1550 | B158: 1560 | C158: 9950 | D158: 5450 | E158: 0 | F158: 0 | G158: 0 | H158: 0 | I158: 0 | J158: 0 | K158: 0 | L158: 0 | M158: 0
A159: 1560 | B159: 1570 | C159: 10160 | D159: 5660 | E159: 0 | F159: 0 | G159: 0 | H159: 0 | I159: 0 | J159: 0 | K159: 0 | L159: 0 | M159: 0
A160: 1570 | B160: 1580 | C160: 10360 | D160: 5860 | E160: 0 | F160: 0 | G160: 0 | H160: 0 | I160: 0 | J160: 0 | K160: 0 | L160: 0 | M160: 0
A161: 1580 | B161: 1590 | C161: 10570 | D161: 6070 | E161: 0 | F161: 0 | G161: 0 | H161: 0 | I161: 0 | J161: 0 | K161: 0 | L161: 0 | M161: 0
A162: 1590 | B162: 1600 | C162: 10780 | D162: 6280 | E162: 0 | F162: 0 | G162: 0 | H162: 0 | I162: 0 | J162: 0 | K162: 0 | L162: 0 | M162: 0
A163: 1600 | B163: 1610 | C163: 10980 | D163: 6480 | E163: 0 | F163: 0 | G163: 0 | H163: 0 | I163: 0 | J163: 0 | K163: 0 | L163: 0 | M163: 0
A164: 1610 | B164: 1620 | C164: 11190 | D164: 6690 | E164: 0 | F164: 0 | G164: 0 | H164: 0 | I164: 0 | J164: 0 | K164: 0 | L164: 0 | M164: 0
A165: 1620 | B165: 1630 | C165: 11400 | D165: 6900 | E165: 0 | F165: 0 | G165: 0 | H165: 0 | I165: 0 | J165: 0 | K165: 0 | L165: 0 | M165: 0
A166: 1630 | B166: 1640 | C166: 11600 | D166: 7100 | E166: 0 | F166: 0 | G166: 0 | H166: 0 | I166: 0 | J166: 0 | K166: 0 | L166: 0 | M166: 0
A167: 1640 | B167: 1650 | C167: 11810 | D167: 7310 | E167: 0 | F167: 0 | G167: 0 | H167: 0 | I167: 0 | J167: 0 | K167: 0 | L167: 0 | M167: 0
A168: 1650 | B168: 1660 | C168: 12020 | D168: 7520 | E168: 0 | F168: 0 | G168: 0 | H168: 0 | I168: 0 | J168: 0 | K168: 0 | L168: 0 | M168: 0
A169: 1660 | B169: 1670 | C169: 12220 | D169: 7720 | E169: 0 | F169: 0 | G169: 0 | H169: 0 | I169: 0 | J169: 0 | K169: 0 | L169: 0 | M169: 0
A170: 1670 | B170: 1680 | C170: 12430 | D170: 7930 | E170: 0 | F170: 0 | G170: 0 | H170: 0 | I170: 0 | J170: 0 | K170: 0 | L170: 0 | M170: 0
A171: 1680 | B171: 1690 | C171: 12640 | D171: 8140 | E171: 0 | F171: 0 | G171: 0 | H171: 0 | I171: 0 | J171: 0 | K171: 0 | L171: 0 | M171: 0
A172: 1690 | B172: 1700 | C172: 12840 | D172: 8340 | E172: 0 | F172: 0 | G172: 0 | H172: 0 | I172: 0 | J172: 0 | K172: 0 | L172: 0 | M172: 0
A173: 1700 | B173: 1710 | C173: 13050 | D173: 8550 | E173: 0 | F173: 0 | G173: 0 | H173: 0 | I173: 0 | J173: 0 | K173: 0 | L173: 0 | M173: 0
A174: 1710 | B174: 1720 | C174: 13260 | D174: 8760 | E174: 0 | F174: 0 | G174: 0 | H174: 0 | I174: 0 | J174: 0 | K174: 0 | L174: 0 | M174: 0
A175: 1720 | B175: 1730 | C175: 13460 | D175: 8960 | E175: 1040 | F175: 0 | G175: 0 | H175: 0 | I175: 0 | J175: 0 | K175: 0 | L175: 0 | M175: 0
A176: 1730 | B176: 1740 | C176: 13670 | D176: 9170 | E176: 1240 | F176: 0 | G176: 0 | H176: 0 | I176: 0 | J176: 0 | K176: 0 | L176: 0 | M176: 0
A177: 1740 | B177: 1750 | C177: 13880 | D177: 9380 | E177: 1440 | F177: 0 | G177: 0 | H177: 0 | I177: 0 | J177: 0 | K177: 0 | L177: 0 | M177: 0
A178: 1750 | B178: 1760 | C178: 14080 | D178: 9580 | E178: 1640 | F178: 0 | G178: 0 | H178: 0 | I178: 0 | J178: 0 | K178: 0 | L178: 0 | M178: 0
A179: 1760 | B179: 1770 | C179: 14290 | D179: 9790 | E179: 1830 | F179: 0 | G179: 0 | H179: 0 | I179: 0 | J179: 0 | K179: 0 | L179: 0 | M179: 0
A180: 1770 | B180: 1780 | C180: 14500 | D180: 10000 | E180: 2030 | F180: 0 | G180: 0 | H180: 0 | I180: 0 | J180: 0 | K180: 0 | L180: 0 | M180: 0
A181: 1780 | B181: 1790 | C181: 14700 | D181: 10200 | E181: 2230 | F181: 0 | G181: 0 | H181: 0 | I181: 0 | J181: 0 | K181: 0 | L181: 0 | M181: 0
A182: 1790 | B182: 1800 | C182: 14910 | D182: 10410 | E182: 2430 | F182: 0 | G182: 0 | H182: 0 | I182: 0 | J182: 0 | K182: 0 | L182: 0 | M182: 0
A183: 1800 | B183: 1810 | C183: 15110 | D183: 10610 | E183: 2630 | F183: 0 | G183: 0 | H183: 0 | I183: 0 | J183: 0 | K183: 0 | L183: 0 | M183: 0
A184: 1810 | B184: 1820 | C184: 15320 | D184: 10820 | E184: 2830 | F184: 0 | G184: 0 | H184: 0 | I184: 0 | J184: 0 | K184: 0 | L184: 0 | M184: 0
A185: 1820 | B185: 1830 | C185: 15530 | D185: 11030 | E185: 3020 | F185: 0 | G185: 0 | H185: 0 | I185: 0 | J185: 0 | K185: 0 | L185: 0 | M185: 0
A186: 1830 | B186: 1840 | C186: 15730 | D186: 11230 | E186: 3220 | F186: 0 | G186: 0 | H186: 0 | I186: 0 | J186: 0 | K186: 0 | L186: 0 | M186: 0
A187: 1840 | B187: 1850 | C187: 15940 | D187: 11440 | E187: 3420 | F187: 0 | G187: 0 | H187: 0 | I187: 0 | J187: 0 | K187: 0 | L187: 0 | M187: 0
A188: 1850 | B188: 1860 | C188: 16150 | D188: 11650 | E188: 3620 | F188: 0 | G188: 0 | H188: 0 | I188: 0 | J188: 0 | K188: 0 | L188: 0 | M188: 0
A189: 1860 | B189: 1870 | C189: 16350 | D189: 11850 | E189: 3820 | F189: 0 | G189: 0 | H189: 0 | I189: 0 | J189: 0 | K189: 0 | L189: 0 | M189: 0
A190: 1870 | B190: 1880 | C190: 16560 | D190: 12060 | E190: 4020 | F190: 0 | G190: 0 | H190: 0 | I190: 0 | J190: 0 | K190: 0 | L190: 0 | M190: 0
A191: 1880 | B191: 1890 | C191: 16770 | D191: 12270 | E191: 4220 | F191: 0 | G191: 0 | H191: 0 | I191: 0 | J191: 0 | K191: 0 | L191: 0 | M191: 0
A192: 1890 | B192: 1900 | C192: 16970 | D192: 12470 | E192: 4410 | F192: 1040 | G192: 0 | H192: 0 | I192: 0 | J192: 0 | K192: 0 | L192: 0 | M192: 0
A193: 1900 | B193: 1910 | C193: 17180 | D193: 12680 | E193: 4610 | F193: 1240 | G193: 0 | H193: 0 | I193: 0 | J193: 0 | K193: 0 | L193: 0 | M193: 0
A194: 1910 | B194: 1920 | C194: 17390 | D194: 12890 | E194: 4810 | F194: 1440 | G194: 0 | H194: 0 | I194: 0 | J194: 0 | K194: 0 | L194: 0 | M194: 0
A195: 1920 | B195: 1930 | C195: 17590 | D195: 13090 | E195: 5010 | F195: 1630 | G195: 0 | H195: 0 | I195: 0 | J195: 0 | K195: 0 | L195: 0 | M195: 0
A196: 1930 | B196: 1940 | C196: 17800 | D196: 13300 | E196: 5210 | F196: 1830 | G196: 0 | H196: 0 | I196: 0 | J196: 0 | K196: 0 | L196: 0 | M196: 0
A197: 1940 | B197: 1950 | C197: 18010 | D197: 13510 | E197: 5410 | F197: 2030 | G197: 0 | H197: 0 | I197: 0 | J197: 0 | K197: 0 | L197: 0 | M197: 0
A198: 1950 | B198: 1960 | C198: 18210 | D198: 13710 | E198: 5600 | F198: 2230 | G198: 0 | H198: 0 | I198: 0 | J198: 0 | K198: 0 | L198: 0 | M198: 0
A199: 1960 | B199: 1970 | C199: 18420 | D199: 13920 | E199: 5800 | F199: 2430 | G199: 0 | H199: 0 | I199: 0 | J199: 0 | K199: 0 | L199: 0 | M199: 0
A200: 1970 | B200: 1980 | C200: 18630 | D200: 14130 | E200: 6000 | F200: 2630 | G200: 0 | H200: 0 | I200: 0 | J200: 0 | K200: 0 | L200: 0 | M200: 0
A201: 1980 | B201: 1990 | C201: 18880 | D201: 14330 | E201: 6200 | F201: 2820 | G201: 0 | H201: 0 | I201: 0 | J201: 0 | K201: 0 | L201: 0 | M201: 0
A202: 1990 | B202: 2000 | C202: 19200 | D202: 14540 | E202: 6400 | F202: 3020 | G202: 0 | H202: 0 | I202: 0 | J202: 0 | K202: 0 | L202: 0 | M202: 0
... 457 more rows

Sheet 메모 (hidden)
B2: ※ 급여 관련 특이사항을 메모해두는 용도입니다.
